bitfinex/quotes_BTCUSD_20250330
["timestamp","ask_amount","ask_price","bid_price","bid_amount"]
[1743327975016,0.0001687,83660.0,83648.0,0.011954]
[1743327975017,0.00209546,83649.0,83648.0,1.26875183]
[1743327975215,0.00209546,83649.0,83648.0,1.40044051]
[1743327978395,0.00209546,83649.0,83648.0,1.40344051]
[1743327978852,0.00209546,83649.0,83648.0,1.42777037]
[1743327979735,0.00209546,83649.0,83648.0,1.30748554]
[1743327983889,0.01213353,83656.0,83655.0,0.239077]
[1743327984092,0.3001687,83660.0,83656.0,0.01454085]
[1743327984707,0.3001687,83660.0,83657.0,0.01136533]
[1743327985209,0.31261329,83660.0,83657.0,0.01136533]
[1743327988549,0.56363129,83660.0,83657.0,0.01136533]
[1743327988998,0.56363129,83660.0,83659.0,0.01454085]
[1743327989432,0.56363129,83660.0,83659.0,0.15765762]
[1743327991612,0.31261329,83660.0,83659.0,0.15765762]
[1743327991909,0.01261329,83660.0,83659.0,0.15765762]
[1743327992732,0.01261329,83660.0,83659.0,0.02589762]
[1743327993032,0.01261329,83660.0,83659.0,0.15765762]
[1743327993327,0.32456629,83660.0,83659.0,0.15765762]
[1743327994700,0.02456629,83660.0,83659.0,0.15765762]
[1743327997542,0.02456629,83660.0,83659.0,0.15975308]
[1743328000577,0.01261329,83660.0,83659.0,0.47172939]
[1743328000758,0.0001687,83660.0,83659.0,0.41077108]
[1743328002337,0.0001687,83660.0,83659.0,0.71269106]
[1743328002543,0.0001687,83660.0,83659.0,0.79449106]
[1743328003231,0.0001687,83660.0,83659.0,0.91477589]
[1743328003411,0.0001687,83660.0,83659.0,1.03506072]
[1743328003615,0.250936,83687.0,83659.0,1.03506072]
[1743328003616,0.02,83690.0,83667.0,0.250994]
[1743328003814,4.3e-07,83668.0,83667.0,0.8279622]
[1743328004335,0.02,83690.0,83678.0,0.250961]
[1743328004467,0.02,83690.0,83678.0,0.26550185]
[1743328004670,0.02,83690.0,83678.0,0.35232692]
[1743328004872,0.02,83690.0,83687.0,0.250933]
[1743328005073,0.02009543,83690.0,83689.0,0.01454085]
[1743328005262,0.02009543,83690.0,83689.0,0.02648985]
[1743328005643,0.02009543,83690.0,83689.0,0.05004532]
[1743328006628,0.02009543,83690.0,83689.0,0.06199432]
[1743328007928,0.02026403,83690.0,83689.0,0.06199432]
[1743328009064,0.02026403,83690.0,83689.0,0.18227915]
[1743328009697,0.02026403,83690.0,83689.0,0.06199432]
[1743328009908,0.02026403,83690.0,83689.0,0.3639143]
[1743328013587,0.02026403,83690.0,83689.0,0.4836853]
[1743328014086,0.02026403,83690.0,83689.0,0.3519653]
[1743328014286,0.02026403,83690.0,83689.0,0.4836853]
[1743328014486,0.02026403,83690.0,83689.0,0.3519653]
[1743328014713,0.02026403,83690.0,83689.0,0.4836853]
[1743328016408,0.02026403,83690.0,83689.0,0.50394933]
[1743328019687,0.02026403,83690.0,83689.0,0.37222933]
[1743328019998,0.02026403,83690.0,83689.0,0.50394933]
[1743328020574,0.02026403,83690.0,83689.0,0.74292933]
[1743328021321,0.02026403,83690.0,83689.0,0.75487833]
[1743328022123,0.311948,83696.0,83691.0,0.25351285]
[1743328022618,0.311948,83696.0,83693.0,0.01454085]
[1743328023116,0.311948,83696.0,83695.0,0.01454085]
[1743328023568,0.311948,83696.0,83695.0,0.02574363]
[1743328028779,0.311948,83696.0,83695.0,0.59482363]
[1743328032102,0.3145791,83696.0,83695.0,0.72654363]
[1743328032309,0.3147478,83696.0,83695.0,0.72654363]
[1743328041315,0.3147478,83696.0,83695.0,0.71196278]
[1743328042197,0.3147478,83696.0,83695.0,0.58028278]
[1743328042404,0.3147478,83696.0,83695.0,0.71196278]
[1743328046457,0.3142478,83696.0,83695.0,0.71196278]
[1743328056875,0.3142478,83696.0,83695.0,0.71230018]
[1743328058503,0.3142478,83696.0,83695.0,0.58062018]
[1743328058720,0.3142478,83696.0,83695.0,0.71230018]
[1743328067985,0.3142478,83696.0,83695.0,0.58062018]
[1743328068214,0.3142478,83696.0,83695.0,0.71230018]
[1743328070089,0.45616258,83696.0,83695.0,0.58062018]
[1743328070289,0.42480431,83696.0,83695.0,0.71230018]
[1743328070500,0.3935478,83696.0,83695.0,0.71230018]
[1743328072329,0.3935478,83696.0,83695.0,0.58062018]
[1743328073761,0.42480431,83696.0,83695.0,1.8e-07]
[1743328073935,0.3935478,83696.0,83695.0,1.8e-07]
[1743328079592,0.3935478,83696.0,83690.0,0.0003374]
[1743328079593,0.011948,83691.0,83690.0,5.8e-07]
[1743328079764,0.011948,83691.0,83689.0,9.8e-07]
[1743328079765,0.390048,83690.0,83689.0,9.8e-07]
[1743328080190,0.629055,83680.0,83679.0,0.0003374]
[1743328080383,0.01195,83677.0,83676.0,0.56908]
[1743328080823,0.01195,83677.0,83676.0,0.56917543]
[1743328081386,0.01195,83677.0,83676.0,0.57859234]
[1743328082112,0.550964,83677.0,83676.0,0.57859234]
[1743328082817,0.55983071,83677.0,83676.0,0.57859234]
[1743328083932,0.56183071,83677.0,83676.0,0.57859234]
[1743328085287,0.55983071,83677.0,83676.0,0.57859234]
[1743328085675,0.56183071,83677.0,83676.0,0.57859234]
[1743328086591,0.56283071,83677.0,83676.0,0.57859234]
[1743328092074,0.56283071,83677.0,83676.0,0.00984974]
[1743328092479,0.56283071,83677.0,83676.0,0.00043283]
[1743328112806,0.56283071,83677.0,83676.0,0.13215283]
[1743328131974,0.303,83677.0,83676.0,0.13215283]
[1743328132379,0.31495,83677.0,83676.0,0.13215283]
[1743328136200,0.31495,83677.0,83676.0,0.14167287]
[1743328137636,0.303,83677.0,83676.0,0.14167287]
[1743328137844,0.31495,83677.0,83676.0,0.14167287]
[1743328140676,0.31495,83677.0,83676.0,0.13215283]
[1743328140877,0.31495,83677.0,83676.0,0.14163137]
[1743328152922,0.31495,83677.0,83676.0,0.00991137]
[1743328153118,0.31495,83677.0,83676.0,0.14159137]
[1743328153757,0.31495,83677.0,83676.0,0.00991137]
[1743328153976,0.31495,83677.0,83676.0,0.14159137]
[1743328163212,0.31495,83677.0,83676.0,0.00991137]
[1743328163418,0.31495,83677.0,83676.0,0.14159137]
[1743328172505,0.31495,83677.0,83676.0,0.00991137]
[1743328172689,0.39515,83677.0,83676.0,0.00991137]
[1743328176181,0.39515,83677.0,83676.0,0.00043283]
[1743328178361,0.31495,83677.0,83676.0,0.00043283]
[1743328190381,0.011951,83669.0,83668.0,0.13168]
[1743328190585,0.011951,83669.0,83668.0,0.13905549]
[1743328192076,0.550988,83669.0,83668.0,0.13905549]
[1743328192587,0.550988,83669.0,83668.0,0.14005549]
[1743328193847,0.550988,83669.0,83668.0,0.00837549]
[1743328195362,0.539037,83669.0,83668.0,0.001]
[1743328195559,0.311952,83668.0,83667.0,0.13168]
[1743328195977,0.3,83668.0,83667.0,0.13168]
[1743328196583,0.011952,83668.0,83667.0,0.13268]
[1743328202818,0.311952,83668.0,83667.0,0.001]
[1743328207403,0.32317754,83668.0,83667.0,0.001]
[1743328208005,0.32317754,83668.0,83667.0,0.0013374]
[1743328208353,0.32334624,83668.0,83667.0,0.0013374]
[1743328210687,0.34579714,83668.0,83667.0,0.0013374]
[1743328213051,0.011953,83661.0,83660.0,0.13168]
[1743328213633,0.011953,83661.0,83660.0,0.13908972]
[1743328214030,0.551013,83661.0,83660.0,0.13908972]
[1743328214430,0.551013,83661.0,83660.0,0.14208972]
[1743328215094,0.58468944,83661.0,83660.0,0.14208972]
[1743328219378,0.58468944,83661.0,83660.0,0.13468]
[1743328220602,0.58468944,83661.0,83660.0,0.13168]
[1743328220942,0.58468944,83661.0,83660.0,0.13268]
[1743328221387,0.58468944,83661.0,83660.0,0.13168]
[1743328221850,0.58468944,83661.0,83660.0,0.13268]
[1743328222174,0.58468944,83661.0,83660.0,0.1330174]
[1743328223341,0.58468944,83661.0,83660.0,0.0013374]
[1743328225273,0.58468944,83661.0,83660.0,0.0818374]
[1743328225887,0.56223854,83661.0,83660.0,0.0818374]
[1743328226315,0.56223854,83661.0,83660.0,0.08924712]
[1743328227721,0.56223854,83661.0,83660.0,0.00874712]
[1743328227922,0.56223854,83661.0,83660.0,0.0013374]
[1743328228082,0.56223854,83661.0,83660.0,0.00874712]
[1743328229499,0.58467734,83661.0,83660.0,0.00874712]
[1743328231422,0.58467734,83661.0,83660.0,0.01649419]
[1743328231612,0.58467734,83661.0,83660.0,0.0013374]
[1743328232911,0.551036,83653.0,83652.0,0.56932]
[1743328234077,0.56226154,83653.0,83652.0,0.58451178]
[1743328234859,0.58470034,83653.0,83652.0,0.58651178]
[1743328235780,0.58470034,83653.0,83652.0,0.54906057]
[1743328236585,0.58470034,83653.0,83652.0,0.54706057]
[1743328237792,0.58470034,83653.0,83652.0,0.54806057]
[1743328242993,0.58470034,83653.0,83652.0,0.01619178]
[1743328243203,0.58470034,83653.0,83652.0,0.001]
[1743328246139,0.58470034,83653.0,83652.0,0.0013374]
[1743328246906,0.58470034,83653.0,83652.0,0.0003374]
[1743328247310,0.58570034,83653.0,83652.0,0.0003374]
[1743328247515,0.551045,83650.0,83643.0,0.0003372]
[1743328248770,0.551045,83650.0,83649.0,0.00043263]
[1743328248942,0.5734838,83650.0,83649.0,0.00043263]
[1743328249397,0.58470934,83650.0,83649.0,0.00143263]
[1743328253642,0.58470934,83650.0,83649.0,0.00043263]
[1743328253837,0.58470934,83650.0,83649.0,0.00143263]
[1743328254064,0.58570934,83650.0,83649.0,0.00143263]
[1743328254261,0.58470934,83650.0,83649.0,0.00143263]
[1743328254596,0.58570934,83650.0,83649.0,0.00043263]
[1743328255836,0.551063,83644.0,83643.0,0.0003372]
[1743328256166,0.551063,83644.0,83643.0,0.01634515]
[1743328257137,0.553063,83644.0,83643.0,0.0003372]
[1743328257325,0.56428854,83644.0,83643.0,0.0003372]
[1743328257481,0.58672734,83644.0,83643.0,0.0003372]
[1743328257682,0.58772734,83644.0,83643.0,0.0003372]
[1743328259201,0.551081,83638.0,83637.0,0.5694]
[1743328259417,0.551081,83638.0,83637.0,0.56949546]
[1743328260210,0.5735198,83638.0,83637.0,0.56949546]
[1743328260383,0.5735198,83638.0,83637.0,0.57049546]
[1743328260984,0.58474534,83638.0,83637.0,0.57049546]
[1743328262254,0.58474534,83638.0,83637.0,0.00109546]
[1743328267302,0.62064321,83638.0,83637.0,0.00109546]
[1743328269296,0.551097,83633.0,83632.0,0.17892]
[1743328269632,0.551097,83633.0,83632.0,0.19497607]
[1743328270346,0.551097,83633.0,83632.0,0.19797607]
[1743328270784,0.60943367,83633.0,83632.0,0.19797607]
[1743328271180,0.63860801,83633.0,83632.0,0.17100663]
[1743328271445,0.63860801,83633.0,83632.0,0.15077607]
[1743328272046,0.63860801,83633.0,83632.0,0.14777607]
[1743328272453,0.63860801,83633.0,83632.0,0.14977607]
[1743328277001,0.63860801,83633.0,83632.0,0.1700401]
[1743328283510,0.63860801,83633.0,83632.0,0.1702089]
[1743328283858,0.62065921,83633.0,83632.0,0.1327514]
[1743328295435,0.62065921,83633.0,83632.0,0.0384889]
[1743328295635,0.62065921,83633.0,83632.0,0.02243283]
[1743328295972,0.3,83629.0,83628.0,0.0786]
[1743328297235,0.3224388,83629.0,83628.0,0.0816]
[1743328297636,0.33366434,83629.0,83628.0,0.0816]
[1743328297846,0.34562134,83629.0,83628.0,0.0816]
[1743328298337,0.38157788,83629.0,83628.0,0.0816]
[1743328299092,0.06962088,83629.0,83628.0,0.0816]
[1743328299858,0.32072888,83629.0,83628.0,0.0816]
[1743328305966,0.62072888,83629.0,83628.0,0.0816]
[1743328309284,0.62072888,83629.0,83628.0,0.0978057]
[1743328311765,0.58477234,83629.0,83628.0,0.0978057]
[1743328312763,0.58477234,83629.0,83628.0,0.0948057]
[1743328312970,0.58477234,83629.0,83628.0,0.0968057]
[1743328313468,0.58477234,83629.0,83628.0,0.0948057]
[1743328313705,0.58477234,83629.0,83628.0,0.0968057]
[1743328314455,0.57281534,83629.0,83628.0,0.0968057]
[1743328314657,0.58477234,83629.0,83628.0,0.0182057]
[1743328318663,0.58477234,83629.0,83628.0,0.1500057]
[1743328320359,0.58477234,83629.0,83628.0,0.1480057]
[1743328320968,0.58477234,83629.0,83628.0,0.11054669]
[1743328321308,0.58477234,83629.0,83628.0,0.12391078]
[1743328321868,0.58477234,83629.0,83628.0,0.12491078]
[1743328322680,0.5735468,83629.0,83628.0,0.12491078]
[1743328333736,0.5735468,83629.0,83628.0,0.12507948]
[1743328334048,0.5738842,83629.0,83628.0,0.12507948]
[1743328338534,0.3227762,83629.0,83628.0,0.51613133]
[1743328344189,0.3227762,83629.0,83628.0,0.81805131]
[1743328344423,0.5738842,83629.0,83628.0,0.01453279]
[1743328351871,0.5514454,83629.0,83628.0,0.01453279]
[1743328354001,0.57388651,83629.0,83628.0,0.01453279]
[1743328375820,0.56192951,83629.0,83628.0,0.01453279]
[1743328375976,0.32277851,83629.0,83628.0,0.04103064]
[1743328376362,0.32277851,83629.0,83628.0,0.12203064]
[1743328376698,0.02277851,83629.0,83628.0,0.12203064]
[1743328376882,0.02277851,83629.0,83628.0,0.16813064]
[1743328377083,0.02277851,83629.0,83628.0,0.28841547]
[1743328377283,0.02277851,83629.0,83628.0,0.16813064]
[1743328377603,0.02277851,83629.0,83628.0,0.47005062]
[1743328381762,0.02277851,83629.0,83628.0,0.46905062]
[1743328381971,0.02277851,83629.0,83628.0,0.47205062]
[1743328386011,0.0003374,83629.0,83628.0,0.47205062]
[1743328386746,0.0003374,83629.0,83628.0,0.50763354]
[1743328389797,0.0003374,83629.0,83628.0,0.47205062]
[1743328401128,0.0003374,83629.0,83628.0,1.04141062]
[1743328403200,0.0003374,83629.0,83628.0,1.17313062]
[1743328404672,0.0003374,83629.0,83628.0,1.04141062]
[1743328404891,0.0003374,83629.0,83628.0,1.17313062]
[1743328407899,0.0003374,83629.0,83628.0,1.19199127]
[1743328408694,0.02277064,83629.0,83628.0,1.19199127]
[1743328410607,0.02277064,83629.0,83628.0,1.06027127]
[1743328410806,0.02277064,83629.0,83628.0,1.17313062]
[1743328413079,0.02277064,83629.0,83628.0,1.04141062]
[1743328413399,0.02277064,83629.0,83628.0,1.17313062]
[1743328424152,0.02277064,83629.0,83628.0,1.04141062]
[1743328424469,0.02277064,83629.0,83628.0,1.17309062]
[1743328428176,0.02277064,83629.0,83628.0,1.12699062]
[1743328430795,0.03400109,83629.0,83628.0,1.04599062]
[1743328432601,0.02277064,83629.0,83628.0,1.04599062]
[1743328433263,0.02277064,83629.0,83628.0,1.12407553]
[1743328434024,0.02277064,83629.0,83628.0,1.04599062]
[1743328434760,0.02277064,83629.0,83628.0,0.91431062]
[1743328434961,0.02277064,83629.0,83628.0,1.04599062]
[1743328457818,0.02277064,83629.0,83628.0,0.91431062]
[1743328458020,0.02277064,83629.0,83628.0,1.04599062]
[1743328470348,0.02277064,83629.0,83628.0,1.36836028]
[1743328471753,0.02277064,83629.0,83628.0,1.24807545]
[1743328474540,0.0003374,83629.0,83628.0,1.24807545]
[1743328481170,0.0003374,83629.0,83628.0,1.24507545]
[1743328481537,0.0003374,83629.0,83628.0,1.24807545]
[1743328481987,0.0003374,83632.0,83631.0,0.56722543]
[1743328482259,0.0003374,83632.0,83631.0,0.82087305]
[1743328483013,0.02277408,83632.0,83631.0,0.82087305]
[1743328484013,0.02277408,83632.0,83631.0,0.82187305]
[1743328484262,0.02277408,83632.0,83631.0,0.82387305]
[1743328484455,0.0003374,83632.0,83631.0,0.82387305]
[1743328487314,0.0003374,83632.0,83631.0,0.70358822]
[1743328487468,0.0003374,83632.0,83631.0,1.27290822]
[1743328491370,0.0003374,83632.0,83631.0,1.40458822]
[1743328492903,0.02277438,83632.0,83631.0,1.40458822]
[1743328496104,0.0003374,83632.0,83631.0,1.40458822]
[1743328496420,0.0003374,83632.0,83631.0,1.52487305]
[1743328498726,0.02278313,83632.0,83631.0,1.52487305]
[1743328501047,0.0003374,83632.0,83631.0,1.52487305]
[1743328504558,0.0003374,83632.0,83631.0,1.52287305]
[1743328504744,0.0003374,83632.0,83631.0,1.52187305]
[1743328504942,0.0003374,83632.0,83631.0,1.52387305]
[1743328505280,0.0003374,83632.0,83631.0,1.52487305]
[1743328505891,0.0003374,83632.0,83631.0,1.39319305]
[1743328506069,0.0003374,83632.0,83631.0,1.52487305]
[1743328507340,0.0227935,83632.0,83631.0,1.52487305]
[1743328524753,0.0003374,83652.0,83642.0,0.251069]
[1743328525004,0.00038806,83643.0,83642.0,0.47795963]
[1743328525140,0.00038806,83643.0,83642.0,0.50322534]
[1743328525334,0.00038806,83643.0,83642.0,0.78167682]
[1743328525941,0.00138806,83643.0,83642.0,0.78167682]
[1743328526486,0.00038806,83643.0,83642.0,0.78367682]
[1743328526683,0.00038806,83643.0,83642.0,0.78667682]
[1743328531654,0.00038806,83643.0,83642.0,0.81110013]
[1743328539790,0.00038806,83643.0,83642.0,0.94274013]
[1743328540219,0.00038806,83643.0,83642.0,1.51198013]
[1743328540714,0.0003374,83652.0,83651.0,0.251042]
[1743328540922,0.0003374,83652.0,83651.0,0.64676641]
[1743328541125,0.0003374,83652.0,83651.0,0.6597569]
[1743328544962,0.0003374,83652.0,83651.0,1.2289969]
[1743328550824,0.0227519,83652.0,83651.0,1.12587676]
[1743328561538,0.0003374,83652.0,83651.0,1.12587676]
[1743328571813,0.0003374,83652.0,83651.0,1.25751676]
[1743328578352,0.0003374,83652.0,83651.0,1.26051676]
[1743328584423,0.0003374,83652.0,83651.0,1.46080159]
[1743328584630,0.0003374,83652.0,83651.0,1.58108642]
[1743328586336,0.0003374,83652.0,83651.0,1.58008642]
[1743328587563,0.0003374,83652.0,83651.0,1.58308642]
[1743328592325,0.0003374,83652.0,83651.0,1.62032772]
[1743328593120,4e-07,83652.0,83651.0,1.65032772]
[1743328593410,0.0001687,83667.0,83666.0,0.52905972]
[1743328593555,0.00021922,83667.0,83666.0,0.7955254]
[1743328593740,0.00021922,83667.0,83666.0,0.8084503]
[1743328594589,0.00021922,83667.0,83666.0,0.8114503]
[1743328594748,0.00021922,83667.0,83666.0,0.93173513]
[1743328596439,0.00021922,83667.0,83666.0,0.93373513]
[1743328598333,0.00021922,83667.0,83666.0,0.95824214]
[1743328598566,0.00021922,83667.0,83666.0,0.95820214]
[1743328599179,0.0469,83683.0,83667.0,0.2897955]
[1743328599373,0.0469,83683.0,83667.0,0.42462118]
[1743328599623,0.0469,83683.0,83667.0,0.53128758]
[1743328600886,0.0469,83683.0,83667.0,0.53428758]
[1743328601087,0.0469,83683.0,83667.0,0.53628758]
[1743328602002,0.0469,83683.0,83667.0,0.54830997]
[1743328602396,0.0469,83683.0,83667.0,0.4545641]
[1743328603549,0.0757,83677.0,83667.0,0.4545641]
[1743328603743,0.0757,83677.0,83667.0,1.0236841]
[1743328605133,0.0757,83677.0,83667.0,1.01166171]
[1743328605714,0.0757,83677.0,83667.0,0.89137688]
[1743328605935,0.0757,83677.0,83667.0,1.02297688]
[1743328606133,0.0757,83677.0,83667.0,0.89137688]
[1743328606351,0.0757,83677.0,83667.0,1.02297688]
[1743328616482,0.0757,83677.0,83667.0,1.02331428]
[1743328622712,0.0757,83677.0,83667.0,0.89171428]
[1743328622855,0.0757,83677.0,83667.0,1.02331428]
[1743328632934,0.3,83676.0,83667.0,1.02331428]
[1743328634378,0.539019,83676.0,83667.0,1.02331428]
[1743328634579,0.011951,83675.0,83667.0,1.02331428]
[1743328634780,0.0454,83672.0,83667.0,1.02331428]
[1743328638587,0.3,83670.0,83667.0,1.01136228]
[1743328638800,0.0121207,83668.0,83667.0,1.01136228]
[1743328639011,0.3121207,83668.0,83667.0,1.01136228]
[1743328641991,0.3121207,83668.0,83667.0,0.87976228]
[1743328642223,0.3121207,83668.0,83667.0,1.01136228]
[1743328642940,0.3001687,83668.0,83667.0,1.01136228]
[1743328643208,0.0001687,83668.0,83667.0,1.02331428]
[1743328644058,0.0001687,83668.0,83667.0,1.26235628]
[1743328652111,0.0001687,83668.0,83667.0,1.13075628]
[1743328652361,0.0001687,83668.0,83667.0,1.26235628]
[1743328652533,0.0001687,83668.0,83667.0,1.25235628]
[1743328660064,0.00702743,83678.0,83677.0,0.239014]
[1743328660406,0.0001687,83679.0,83678.0,0.01454085]
[1743328660904,0.0001687,83679.0,83678.0,0.02741331]
[1743328661240,0.01187889,83679.0,83678.0,0.59657331]
[1743328661399,0.01187889,83679.0,83678.0,0.60852331]
[1743328662832,0.01187889,83679.0,83678.0,0.59657331]
[1743328663830,0.31187889,83679.0,83678.0,0.59757331]
[1743328665567,0.32382889,83679.0,83678.0,0.59757331]
[1743328666089,0.32382889,83679.0,83678.0,0.72917331]
[1743328670499,0.31187889,83679.0,83678.0,0.72917331]
[1743328670674,0.01187889,83679.0,83678.0,0.72917331]
[1743328671201,0.26283689,83679.0,83678.0,0.72917331]
[1743328674776,0.56283689,83679.0,83678.0,0.59757331]
[1743328674979,0.56283689,83679.0,83678.0,0.72917331]
[1743328675789,0.56283689,83679.0,83678.0,0.72951071]
[1743328676399,0.64493689,83679.0,83678.0,0.58336986]
[1743328676616,0.69273689,83679.0,83678.0,0.71496986]
[1743328677021,0.69273689,83679.0,83678.0,0.58336986]
[1743328677219,0.72658198,83679.0,83678.0,0.01420986]
[1743328677558,0.69273689,83679.0,83678.0,0.0013374]
[1743328677711,0.71516983,83679.0,83678.0,0.0013374]
[1743328678531,0.680892,83668.0,83667.0,0.0003374]
[1743328678931,0.69210891,83668.0,83667.0,0.0003374]
[1743328679868,0.71454185,83668.0,83667.0,0.0003374]
[1743328680615,0.71454185,83668.0,83667.0,0.0023374]
[1743328680816,0.71454185,83668.0,83667.0,0.0043374]
[1743328684538,0.71454185,83668.0,83667.0,0.0023374]
[1743328684791,0.71454185,83668.0,83667.0,0.0043374]
[1743328684937,0.71454185,83668.0,83667.0,0.0023374]
[1743328685891,0.71454185,83668.0,83667.0,0.0033374]
[1743328687670,0.58464185,83668.0,83667.0,0.0033374]
[1743328687869,0.34560185,83668.0,83667.0,0.0033374]
[1743328688395,0.58464185,83668.0,83667.0,0.0033374]
[1743328688818,0.58464185,83668.0,83667.0,0.01625793]
[1743328689035,0.58464185,83668.0,83667.0,0.0033374]
[1743328689154,0.34560185,83668.0,83667.0,0.03079878]
[1743328689453,0.550992,83668.0,83667.0,0.03079878]
[1743328690638,0.550992,83668.0,83667.0,0.05469854]
[1743328693852,0.550992,83668.0,83667.0,0.18677854]
[1743328694068,0.550992,83668.0,83667.0,0.16287878]
[1743328701432,0.3,83668.0,83667.0,0.16287878]
[1743328701644,0.011951,83669.0,83668.0,0.01454085]
[1743328701807,0.250979,83672.0,83668.0,0.02745701]
[1743328702005,0.011951,83669.0,83668.0,0.02745701]
[1743328702227,0.311951,83669.0,83668.0,0.02745701]
[1743328702434,0.3,83669.0,83668.0,0.02745701]
[1743328703568,0.3,83669.0,83668.0,0.03940901]
[1743328703928,0.3,83669.0,83668.0,0.04140901]
[1743328704770,0.3,83669.0,83668.0,0.04240901]
[1743328707775,0.3,83669.0,83668.0,0.31025251]
[1743328709056,0.3,83669.0,83668.0,0.44277251]
[1743328710089,0.32242082,83669.0,83668.0,0.44277251]
[1743328711516,0.3,83669.0,83668.0,0.44277251]
[1743328719850,0.3,83669.0,83668.0,1.01197251]
[1743328722855,0.32243116,83669.0,83668.0,1.01197251]
[1743328723815,0.3,83669.0,83668.0,1.01197251]
[1743328724062,0.3,83669.0,83668.0,1.01230991]
[1743328727505,0.3,83669.0,83668.0,1.00035791]
[1743328728217,0.311951,83669.0,83668.0,1.00035791]
[1743328728880,0.3,83669.0,83668.0,1.00035791]
[1743328731256,0.3,83669.0,83668.0,0.73251441]
[1743328738921,0.311951,83669.0,83668.0,0.73251441]
[1743328757957,0.311951,83669.0,83668.0,0.73227441]
[1743328764842,0.3,83669.0,83668.0,0.73227441]
[1743328770336,0.3,83669.0,83668.0,0.82442641]
[1743328770581,0.3,83669.0,83668.0,1.09226991]
[1743328770832,0.3,83669.0,83668.0,1.15537079]
[1743328771077,0.3,83669.0,83668.0,1.09226991]
[1743328771808,0.3,83669.0,83668.0,1.09026991]
[1743328773160,0.3,83669.0,83668.0,1.09126991]
[1743328773551,0.3,83669.0,83668.0,1.09226991]
[1743328779474,0.3,83669.0,83668.0,0.86783791]
[1743328779646,0.3,83669.0,83668.0,1.25182991]
[1743328780297,0.33366114,83669.0,83668.0,1.25182991]
[1743328793743,0.33366114,83669.0,83668.0,1.00083791]
[1743328797079,0.33366114,83669.0,83668.0,1.00047791]
[1743328803348,0.57269814,83669.0,83668.0,1.00047791]
[1743328803792,0.33366114,83669.0,83668.0,1.00047791]
[1743328804749,0.33366114,83669.0,83668.0,1.00037778]
[1743328806874,0.33366114,83669.0,83668.0,1.00027773]
[1743328813764,0.34561214,83669.0,83668.0,1.00027773]
[1743328816356,0.34561214,83669.0,83668.0,1.00023773]
[1743328818697,0.34561214,83669.0,83668.0,0.71805356]
[1743328819861,0.34561214,83669.0,83668.0,0.68061334]
[1743328820153,0.34561214,83669.0,83668.0,0.68918441]
[1743328820994,0.34561214,83669.0,83668.0,0.68910441]
[1743328822305,0.33366114,83669.0,83668.0,0.70364526]
[1743328822692,0.33366114,83669.0,83668.0,0.78644526]
[1743328823752,0.34561214,83669.0,83668.0,0.78644526]
[1743328824327,0.311951,83669.0,83668.0,0.78644526]
[1743328824771,0.3,83669.0,83668.0,0.78644526]
[1743328827037,0.3,83669.0,83668.0,1.30528076]
[1743328827231,0.32243869,83669.0,83668.0,1.30528076]
[1743328827681,0.32243869,83669.0,83668.0,0.92176876]
[1743328827906,0.32243869,83669.0,83668.0,0.97148876]
[1743328829708,0.32260739,83669.0,83668.0,0.97148876]
[1743328836554,0.57359539,83669.0,83668.0,0.97148876]
[1743328842279,0.5511567,83669.0,83668.0,0.97148876]
[1743328854117,0.5511567,83669.0,83668.0,0.95694791]
[1743328854567,0.5511567,83669.0,83668.0,0.68910441]
[1743328855449,0.5511567,83669.0,83668.0,0.55658441]
[1743328855872,0.6317567,83669.0,83668.0,0.55658441]
[1743328856335,0.6542047,83669.0,83668.0,0.55658441]
[1743328856539,0.6542047,83669.0,83668.0,0.55458441]
[1743328856746,0.6542047,83669.0,83668.0,0.55358441]
[1743328857710,0.6654249,83669.0,83668.0,0.51614338]
[1743328858302,0.6154249,83669.0,83668.0,0.51614338]
[1743328859684,0.6042047,83669.0,83668.0,0.51614338]
[1743328861297,0.5236047,83669.0,83668.0,0.51614338]
[1743328872777,0.53482235,83669.0,83668.0,0.51614338]
[1743328873418,0.53482235,83669.0,83668.0,0.00890847]
[1743328873801,0.5236047,83669.0,83668.0,0.0003374]
[1743328875872,0.55950528,83669.0,83668.0,0.0003374]
[1743328876075,0.550994,83667.0,83666.0,0.133]
[1743328876490,0.550994,83667.0,83666.0,0.14157981]
[1743328876697,0.60934258,83667.0,83666.0,0.14157981]
[1743328877696,0.60934258,83667.0,83666.0,0.14257981]
[1743328878355,0.62056145,83667.0,83666.0,0.14257981]
[1743328880391,0.62056145,83667.0,83666.0,0.14247973]
[1743328880803,0.58466087,83667.0,83666.0,0.14247973]
[1743328882562,0.58466087,83667.0,83651.0,0.0003372]
[1743328882563,0.551039,83652.0,83651.0,0.0003372]
[1743328882805,0.673639,83652.0,83651.0,0.00038772]
[1743328883034,0.70748409,83652.0,83651.0,0.00038772]
[1743328883965,0.70748409,83652.0,83651.0,0.00138772]
[1743328884206,0.70748409,83652.0,83651.0,7.2e-07]
[1743328884644,0.72993209,83652.0,83651.0,7.2e-07]
[1743328885002,0.74991931,83652.0,83651.0,7.2e-07]
[1743328885229,0.71607422,83652.0,83651.0,7.2e-07]
[1743328886004,0.71607422,83652.0,83651.0,0.00100072]
[1743328886173,0.71607422,83652.0,83651.0,7.2e-07]
[1743328886395,0.551063,83644.0,83643.0,0.0003374]
[1743328887177,0.573511,83644.0,83643.0,0.0003374]
[1743328887567,0.573511,83644.0,83643.0,0.0013374]
[1743328887776,0.58472987,83644.0,83643.0,0.0013374]
[1743328889126,0.58472987,83644.0,83643.0,0.0023374]
[1743328890308,0.58472987,83644.0,83643.0,0.0013374]
[1743328890509,0.58472987,83644.0,83643.0,0.0003374]
[1743328893609,0.58472987,83644.0,83643.0,4e-07]
[1743328900814,0.66032987,83644.0,83643.0,4e-07]
[1743328901025,0.251093,83634.0,83633.0,0.0003374]
[1743328901236,0.551093,83634.0,83633.0,0.0003374]
[1743328901440,0.551093,83634.0,83633.0,0.00763155]
[1743328901709,0.551093,83634.0,83633.0,0.0003374]
[1743328902528,0.551093,83634.0,83633.0,0.0023374]
[1743328903594,0.551093,83634.0,83633.0,0.0043374]
[1743328904436,0.56431017,83634.0,83633.0,0.0043374]
[1743328916534,0.56431017,83634.0,83633.0,0.01163155]
[1743328916709,0.56431017,83634.0,83633.0,0.0043374]
[1743328916967,0.56431017,83634.0,83633.0,0.01163155]
[1743328917170,0.56431017,83634.0,83633.0,0.0043374]
[1743328917373,0.56431017,83634.0,83633.0,0.01163155]
[1743328917580,0.56431017,83634.0,83633.0,0.0043374]
[1743328917785,0.56431017,83634.0,83633.0,0.01163155]
[1743328917966,0.56431017,83634.0,83633.0,0.0043374]
[1743328918168,0.56431017,83634.0,83633.0,0.01163155]
[1743328918371,0.56431017,83634.0,83633.0,0.0043374]
[1743328918599,0.56431017,83634.0,83633.0,0.01163155]
[1743328918783,0.56431017,83634.0,83633.0,0.0043374]